fUSD/lending_fUSD_20240916
["ID","MTS","AMOUNT","RATE_DAILY","PERIOD"]
[338311748,1726488727838,-2163.0535032,0.00014999,2]
[338311749,1726488727847,-95508.04719122,0.00014999,2]
[338311750,1726488727856,-1723.38230532,0.00014999,2]
[338311751,1726488727866,-473.41953402,0.00014999,3]
[338311752,1726488727876,-295.94187401,0.00014999,3]
[338311753,1726488727885,-308.34770504,0.00014999,3]
[338311754,1726488727894,-764.13,0.00014999,2]
[338311755,1726488727903,-764.13,0.00014999,2]
[338311756,1726488727913,-764.13,0.00014999,2]
[338311757,1726488727925,-764.13,0.00014999,2]
[338311758,1726488727935,-764.13,0.00014999,2]
[338311759,1726488727945,-764.13,0.00014999,2]
[338311760,1726488727954,-764.13,0.00014999,2]
[338311761,1726488727963,-764.14262259,0.00014999,2]
[338311762,1726488727974,-814.16,0.00014999,2]
[338311763,1726488727983,-814.16,0.00014999,2]
[338311764,1726488727993,-814.16,0.00014999,2]
[338311765,1726488728004,-814.16,0.00014999,2]
[338311766,1726488728013,-814.16,0.00014999,2]
[338311767,1726488728022,-814.16,0.00014999,2]
[338311768,1726488728031,-814.19674076,0.00014999,2]
[338311769,1726488728041,-500.0,0.00014999,2]
[338311770,1726488728051,-500.0,0.00014999,2]
[338311771,1726488728060,-500.0,0.00014999,2]
[338311772,1726488728070,-500.0,0.00014999,2]
[338311773,1726488728079,-500.0,0.00014999,2]
[338311774,1726488728088,-500.0,0.00014999,2]
[338311775,1726488728098,-500.0,0.00014999,2]
[338311776,1726488728107,-420.10609619,0.00014999,2]
[338311777,1726488728116,-501.08,0.00014999,2]
[338311778,1726488728125,-501.08,0.00014999,2]
[338311779,1726488728135,-501.08,0.00014999,2]
[338311780,1726488728144,-501.08,0.00014999,2]
[338311781,1726488728153,-501.08,0.00014999,2]
[338311782,1726488728162,-501.08,0.00014999,2]
[338311783,1726488728171,-501.08,0.00014999,2]
[338311784,1726488728181,-501.29790792,0.00014999,2]
[338311785,1726488728424,-741.66,0.00014999,2]
[338311786,1726488728434,-741.66,0.00014999,2]
[338311787,1726488728443,-741.66,0.00014999,2]
[338311788,1726488728453,-741.66,0.00014999,2]
[338311789,1726488728462,-741.66,0.00014999,2]
[338311790,1726488728471,-741.66,0.00014999,2]
[338311791,1726488728480,-741.67,0.00014999,2]
[338311792,1726488728488,-1074.56,0.00014999,2]
[338311793,1726488728497,-1074.56,0.00014999,2]
[338311794,1726488728506,-1074.56,0.00014999,2]
[338311795,1726488728515,-1074.56,0.00014999,2]
[338311796,1726488728524,-1074.56,0.00014999,2]
[338311797,1726488728533,-1074.56,0.00014999,2]
[338311798,1726488728542,-1074.72,0.00014999,2]
[338311799,1726488728551,-500.0,0.00014999,2]
[338311800,1726488728562,-500.0,0.00014999,2]
[338311801,1726488728571,-500.0,0.00014999,2]
[338311802,1726488728580,-641.11687848,0.00014999,2]
[338311803,1726488728589,-632.7,0.00014999,2]
[338311804,1726488728598,-632.7,0.00014999,2]
[338311805,1726488728607,-632.7,0.00014999,2]
[338311806,1726488728616,-632.7,0.00014999,2]
[338311807,1726488728625,-632.7,0.00014999,2]
[338311808,1726488728634,-632.7,0.00014999,2]
[338311809,1726488728643,-632.7,0.00014999,2]
[338311810,1726488728652,-632.8944398,0.00014999,2]
[338311811,1726488728661,-963.77,0.00014999,2]
[338311812,1726488728670,-963.77,0.00014999,2]
[338311813,1726488728679,-963.77,0.00014999,2]
[338311814,1726488728688,-963.77,0.00014999,2]
[338311815,1726488728697,-963.77,0.00014999,2]
[338311816,1726488728707,-963.77,0.00014999,2]
[338311817,1726488728716,-963.77,0.00014999,2]
[338311818,1726488728725,-963.95393036,0.00014999,2]
[338311819,1726488728734,-1268.0,0.00014999,2]
[338311820,1726488728744,-1268.0,0.00014999,2]
[338311821,1726488728752,-1268.0,0.00014999,2]
[338311822,1726488728761,-1268.0,0.00014999,2]
[338311823,1726488728771,-1268.0,0.00014999,2]
[338311824,1726488728779,-1268.0,0.00014999,2]
[338311825,1726488728788,-1268.16916117,0.00014999,2]
[338311826,1726488728797,-985.31,0.00014999,2]
[338311827,1726488728810,-985.31,0.00014999,2]
[338311828,1726488728825,-985.31,0.00014999,2]
[338311829,1726488728834,-985.31,0.00014999,2]
[338311830,1726488728843,-985.31,0.00014999,2]
[338311831,1726488728852,-985.31,0.00014999,2]
[338311832,1726488728861,-985.31,0.00014999,2]
[338311833,1726488728870,-985.48621698,0.00014999,2]
[338311834,1726488728879,-1632.74,0.00014999,2]
[338311835,1726488728888,-1632.74,0.00014999,2]
[338311836,1726488728897,-1632.74,0.00014999,2]
[338311837,1726488728907,-1632.74,0.00014999,2]
[338311838,1726488728916,-1632.74,0.00014999,2]
[338311839,1726488728925,-1632.74,0.00014999,2]
[338311840,1726488728934,-1632.92457895,0.00014999,2]
[338311841,1726488728943,-550.81,0.00014999,2]
[338311842,1726488728952,-550.81,0.00014999,2]
[338311843,1726488728964,-550.81,0.00014999,2]
[338311844,1726488728973,-550.81,0.00014999,2]
[338311845,1726488728982,-550.81,0.00014999,2]
[338311846,1726488728991,-550.81,0.00014999,2]
[338311847,1726488729000,-550.86211372,0.00014999,2]
[338311848,1726488729009,-696.54,0.00014999,2]
[338311849,1726488729018,-696.54,0.00014999,2]
[338311850,1726488729027,-696.54,0.00014999,2]
[338311851,1726488729037,-696.54,0.00014999,2]
[338311852,1726488729046,-696.54,0.00014999,2]
[338311853,1726488729056,-696.54,0.00014999,2]
[338311854,1726488729065,-696.54,0.00014999,2]
[338311855,1726488729075,-696.75097849,0.00014999,2]
[338311856,1726488729084,-695.92,0.00014999,2]
[338311857,1726488729094,-695.92,0.00014999,2]
[338311858,1726488729103,-695.92,0.00014999,2]
[338311859,1726488729112,-695.92,0.00014999,2]
[338311860,1726488729121,-695.92,0.00014999,2]
[338311861,1726488729130,-695.92,0.00014999,2]
[338311862,1726488729139,-695.92,0.00014999,2]
[338311863,1726488729147,-696.12579033,0.00014999,2]
[338311864,1726488729156,-572.82,0.00014999,2]
[338311865,1726488729165,-572.82,0.00014999,2]
[338311866,1726488729174,-572.82,0.00014999,2]
[338311867,1726488729183,-572.82,0.00014999,2]
[338311868,1726488729193,-572.82,0.00014999,2]
[338311869,1726488729203,-572.82,0.00014999,2]
[338311870,1726488729212,-572.94,0.00014999,2]
[338311871,1726488729221,-1018.72,0.00014999,2]
[338311872,1726488729230,-1018.72,0.00014999,2]
[338311873,1726488729239,-1018.72,0.00014999,2]
[338311874,1726488729248,-1018.72,0.00014999,2]
[338311875,1726488729257,-1018.72,0.00014999,2]
[338311876,1726488729266,-1018.72,0.00014999,2]
[338311877,1726488729275,-1018.72,0.00014999,2]
[338311878,1726488729284,-1018.81512876,0.00014999,2]
[338311879,1726488729293,-614.96,0.00014999,2]
[338311880,1726488729303,-614.96,0.00014999,2]
[338311881,1726488729312,-614.96,0.00014999,2]
[338311882,1726488729321,-614.96,0.00014999,2]
[338311883,1726488729331,-614.96,0.00014999,2]
[338311884,1726488729340,-614.96,0.00014999,2]
[338311885,1726488729349,-614.96,0.00014999,2]
[338311886,1726488729359,-615.12,0.00014999,2]
[338311887,1726488729368,-1830.89,0.00014999,2]
[338311888,1726488729377,-1830.89,0.00014999,2]
[338311889,1726488729386,-1830.89,0.00014999,2]
[338311890,1726488729395,-1830.89,0.00014999,2]
[338311891,1726488729404,-1830.89,0.00014999,2]
[338311892,1726488729413,-1830.99030524,0.00014999,2]
[338311893,1726488729422,-599.52,0.00014999,2]
[338311894,1726488729431,-599.52,0.00014999,2]
[338311895,1726488729440,-599.52,0.00014999,2]
[338311896,1726488729448,-599.52,0.00014999,2]
[338311897,1726488729457,-599.52,0.00014999,2]
[338311898,1726488729466,-599.65618843,0.00014999,2]
[338311899,1726488729475,-1476.78,0.00014999,2]
[338311900,1726488729484,-1476.78,0.00014999,2]
[338311901,1726488729493,-1476.78,0.00014999,2]
[338311902,1726488729503,-1476.78,0.00014999,2]
[338311903,1726488729512,-1476.78,0.00014999,2]
[338311904,1726488729521,-1476.86274575,0.00014999,2]
[338311905,1726488729531,-697.04,0.00014999,2]
[338311906,1726488729540,-697.04,0.00014999,2]
[338311907,1726488729550,-697.04,0.00014999,2]
[338311908,1726488729563,-697.04,0.00014999,2]
[338311909,1726488729572,-697.18601922,0.00014999,2]
[338311910,1726488729581,-151.55,0.00014999,2]
[338311911,1726488729590,-1972.93,0.00014999,2]
[338311912,1726488729599,-1972.93,0.00014999,2]
[338311913,1726488729609,-1972.93,0.00014999,2]
[338311914,1726488729618,-1972.93,0.00014999,2]
[338311915,1726488729627,-1972.95801778,0.00014999,2]
[338311916,1726488729636,-838.98,0.00014999,2]
[338311917,1726488729646,-838.98,0.00014999,2]
[338311918,1726488729655,-838.98,0.00014999,2]
[338311919,1726488729665,-838.98,0.00014999,2]
[338311920,1726488729674,-838.98,0.00014999,2]
[338311921,1726488729684,-838.98955847,0.00014999,2]
[338311922,1726488729693,-529.28,0.00014999,2]
[338311923,1726488729702,-529.28,0.00014999,2]
[338311924,1726488729712,-529.28,0.00014999,2]
[338311925,1726488729721,-529.28,0.00014999,2]
[338311926,1726488729730,-529.28,0.00014999,2]
[338311927,1726488729740,-529.3858549,0.00014999,2]
[338311928,1726488729750,-2096.77,0.00014999,2]
[338311929,1726488729760,-2096.77,0.00014999,2]
[338311930,1726488729769,-2096.77,0.00014999,2]
[338311931,1726488729779,-2096.77,0.00014999,2]
[338311932,1726488729788,-2096.88497785,0.00014999,2]
[338311933,1726488729797,-1298.33,0.00014999,2]
[338311934,1726488729810,-1298.33,0.00014999,2]
[338311935,1726488729819,-1298.33,0.00014999,2]
[338311936,1726488729828,-1298.33,0.00014999,2]
[338311937,1726488729838,-1298.33,0.00014999,2]
[338311938,1726488729848,-1298.54425102,0.00014999,2]
[338311939,1726488729857,-855.84,0.00014999,2]
[338311940,1726488729866,-855.84,0.00014999,2]
[338311941,1726488729876,-855.84,0.00014999,2]
[338311942,1726488729885,-855.84,0.00014999,2]
[338311943,1726488729894,-855.90727088,0.00014999,2]
[338311944,1726488729903,-958.01,0.00014999,2]
[338311945,1726488729912,-958.01,0.00014999,2]
[338311946,1726488729922,-958.01,0.00014999,2]
[338311947,1726488729934,-958.01,0.00014999,2]
[338311948,1726488729944,-958.12970976,0.00014999,2]
[338311949,1726488729953,-500.0,0.00014999,2]
[338311950,1726488729961,-500.0,0.00014999,2]
[338311951,1726488729971,-159.58996291,0.00014999,2]
[338311952,1726488729980,-738.4,0.00014999,2]
[338311953,1726488729990,-738.4,0.00014999,2]
[338311954,1726488729999,-738.4,0.00014999,2]
[338311955,1726488730009,-738.4,0.00014999,2]
[338311956,1726488730018,-738.4,0.00014999,2]
[338311957,1726488730029,-738.5916394,0.00014999,2]
[338311958,1726488730038,-1079.96,0.00014999,2]
[338311959,1726488730048,-1079.96,0.00014999,2]
[338311960,1726488730059,-1079.96,0.00014999,2]
[338311961,1726488730067,-1079.96,0.00014999,2]
[338311962,1726488730076,-1080.14147194,0.00014999,2]
[338311963,1726488730086,-1220.58,0.00014999,2]
[338311964,1726488730095,-1220.58,0.00014999,2]
[338311965,1726488730104,-1220.58,0.00014999,2]
[338311966,1726488730113,-1220.58,0.00014999,2]
[338311967,1726488730122,-1220.76291097,0.00014999,2]
[338311968,1726488730130,-1922.93,0.00014999,2]
[338311969,1726488730139,-1922.93,0.00014999,2]
[338311970,1726488730148,-1922.93,0.00014999,2]
[338311971,1726488730157,-1922.93,0.00014999,2]
[338311972,1726488730165,-1922.93,0.00014999,2]
[338311973,1726488730174,-1922.94106731,0.00014999,2]
[338311974,1726488730183,-1803.99,0.00014999,2]
[338311975,1726488730192,-1803.99,0.00014999,2]
[338311976,1726488730202,-1803.99,0.00014999,2]
[338311977,1726488730211,-1803.99,0.00014999,2]
[338311978,1726488730220,-1804.11021443,0.00014999,2]
[338311979,1726488730230,-653.89,0.00014999,2]
[338311980,1726488730238,-653.89,0.00014999,2]
[338311981,1726488730247,-653.89,0.00014999,2]
[338311982,1726488730256,-653.89,0.00014999,2]
[338311983,1726488730266,-653.89,0.00014999,2]
[338311984,1726488730275,-653.92885069,0.00014999,2]
[338311985,1726488730284,-1305.56,0.00014999,2]
[338311986,1726488730292,-1305.56,0.00014999,2]
[338311987,1726488730302,-1305.56,0.00014999,2]
[338311988,1726488730311,-1305.56,0.00014999,2]
[338311989,1726488730320,-559.8,0.00014999,2]
[338311990,1726488730329,-1305.56,0.00014999,2]
[338311991,1726488730338,-559.8,0.00014999,2]
[338311992,1726488730347,-1305.72865311,0.00014999,2]
[338311993,1726488730356,-559.8,0.00014999,2]
[338311994,1726488730365,-593.92,0.00014999,2]
[338311995,1726488730373,-559.8,0.00014999,2]
[338311996,1726488730382,-593.92,0.00014999,2]
[338311997,1726488730391,-559.8,0.00014999,2]
[338311998,1726488730400,-593.92,0.00014999,2]
[338311999,1726488730409,-559.84,0.00014999,2]
[338312000,1726488730419,-593.92,0.00014999,2]
[338312001,1726488730427,-594.05103058,0.00014999,2]
[338312002,1726488730437,-291.90853354,0.00014999,2]
[338312003,1726488730446,-2126.66,0.00014999,2]
[338312004,1726488730455,-2126.66,0.00014999,2]
[338312005,1726488730465,-2126.66,0.00014999,2]
[338312006,1726488730474,-2126.66,0.00014999,2]
[338312007,1726488730483,-2126.73686485,0.00014999,2]
[338312008,1726488730492,-987.65,0.00014999,2]
[338312009,1726488730501,-987.65,0.00014999,2]
[338312010,1726488730511,-987.65,0.00014999,2]
[338312011,1726488730520,-987.65,0.00014999,2]
[338312012,1726488730529,-987.78944003,0.00014999,2]
[338312013,1726488730539,-1158.6,0.00014999,2]
[338312014,1726488730548,-1158.6,0.00014999,2]
[338312015,1726488730557,-1121.25,0.00014999,2]
[338312016,1726488730566,-1158.6,0.00014999,2]
[338312017,1726488730575,-1121.25,0.00014999,2]
[338312018,1726488730584,-1158.6,0.00014999,2]
[338312019,1726488730593,-1121.25,0.00014999,2]
[338312020,1726488730602,-1158.6,0.00014999,2]
[338312021,1726488730611,-1121.25,0.00014999,2]
[338312022,1726488730620,-1158.66790635,0.00014999,2]
[338312023,1726488730629,-1121.31615255,0.00014999,2]
[338312024,1726488730638,-1606.57,0.00014999,2]
[338312025,1726488730647,-1606.57,0.00014999,2]
[338312026,1726488730656,-1606.57,0.00014999,2]
[338312027,1726488730665,-1606.57,0.00014999,2]
[338312028,1726488730675,-1606.78339446,0.00014999,2]
[338312029,1726488730684,-527.3,0.00014999,2]
[338312030,1726488730693,-527.3,0.00014999,2]
[338312031,1726488730702,-527.3,0.00014999,2]
[338312032,1726488730711,-527.3,0.00014999,2]
[338312033,1726488730721,-527.3,0.00014999,2]
[338312034,1726488730730,-527.3,0.00014999,2]
[338312035,1726488730739,-527.4073508,0.00014999,2]
[338312036,1726488730749,-588.83,0.00014999,2]
[338312037,1726488730758,-588.83,0.00014999,2]
[338312038,1726488730767,-588.83,0.00014999,2]
[338312039,1726488730776,-588.83,0.00014999,2]
[338312040,1726488730785,-588.88996469,0.00014999,2]
[338312041,1726488730793,-500.0,0.00014999,2]
[338312042,1726488730802,-500.0,0.00014999,2]
[338312043,1726488730811,-500.0,0.00014999,2]
[338312044,1726488730820,-389.95,0.00014999,2]
[338312045,1726488730829,-1574.61,0.00014999,2]
[338312046,1726488730837,-1574.61,0.00014999,2]
[338312047,1726488730846,-1574.61,0.00014999,2]
[338312048,1726488730855,-1574.61,0.00014999,2]
[338312049,1726488730863,-1574.63293383,0.00014999,2]
[338312050,1726488730873,-904.58,0.00014999,2]
[338312051,1726488730882,-904.58,0.00014999,2]
[338312052,1726488730891,-904.58,0.00014999,2]
[338312053,1726488730900,-904.58,0.00014999,2]
[338312054,1726488730909,-904.58,0.00014999,2]
[338312055,1726488730918,-904.73242403,0.00014999,2]
[338312056,1726488730927,-761.46,0.00014999,2]
[338312057,1726488730936,-761.46,0.00014999,2]
[338312058,1726488730945,-761.46,0.00014999,2]
[338312059,1726488730954,-761.46,0.00014999,2]
[338312060,1726488730962,-761.55986434,0.00014999,2]
[338312061,1726488730972,-956.4,0.00014999,2]
[338312062,1726488730981,-956.4,0.00014999,2]
[338312063,1726488730990,-956.4,0.00014999,2]
[338312064,1726488730999,-956.4,0.00014999,2]
[338312065,1726488731008,-956.4,0.00014999,2]
[338312066,1726488731018,-956.4,0.00014999,2]
[338312067,1726488731027,-956.45281187,0.00014999,2]
[338312068,1726488731036,-744.3,0.00014999,2]
[338312069,1726488731045,-744.3,0.00014999,2]
[338312070,1726488731055,-744.3,0.00014999,2]
[338312071,1726488731064,-744.3,0.00014999,2]
[338312072,1726488731074,-744.3,0.00014999,2]
[338312073,1726488731083,-744.32897338,0.00014999,2]
[338312074,1726488731092,-1071.44,0.00014999,2]
[338312075,1726488731102,-1071.44,0.00014999,2]
[338312076,1726488731111,-1071.44,0.00014999,2]
[338312077,1726488731120,-1071.44,0.00014999,2]
[338312078,1726488731130,-1071.44,0.00014999,2]
[338312079,1726488731138,-1071.62049266,0.00014999,2]
[338312080,1726488731148,-820.43,0.00014999,2]
[338312081,1726488731158,-820.43,0.00014999,2]
[338312082,1726488731167,-820.43,0.00014999,2]
[338312083,1726488731178,-820.43,0.00014999,2]
[338312084,1726488731187,-820.43,0.00014999,2]
[338312085,1726488731196,-820.46,0.00014999,2]
[338312086,1726488731205,-884.32,0.00014999,2]
[338312087,1726488731214,-884.32,0.00014999,2]
[338312088,1726488731223,-884.32,0.00014999,2]
[338312089,1726488731232,-884.32,0.00014999,2]
[338312090,1726488731241,-884.32,0.00014999,2]
[338312091,1726488731251,-884.53,0.00014999,2]
[338312092,1726488731260,-1505.11,0.00014999,2]
[338312093,1726488731269,-1505.11,0.00014999,2]
[338312094,1726488731279,-1505.11,0.00014999,2]
[338312095,1726488731288,-1505.11,0.00014999,2]
[338312096,1726488731297,-1505.11,0.00014999,2]
[338312097,1726488731307,-1505.11,0.00014999,2]
[338312098,1726488731316,-1505.17874642,0.00014999,2]
[338312099,1726488731325,-2308.22,0.00014999,2]
[338312100,1726488731334,-2308.22,0.00014999,2]
[338312101,1726488731343,-2308.22,0.00014999,2]
[338312102,1726488731353,-2308.22,0.00014999,2]
[338312103,1726488731363,-2308.22,0.00014999,2]
[338312104,1726488731372,-2308.43476533,0.00014999,2]
[338312105,1726488731381,-1187.84,0.00014999,2]
[338312106,1726488731390,-1187.84,0.00014999,2]
[338312107,1726488731399,-1187.84,0.00014999,2]
[338312108,1726488731408,-1187.84,0.00014999,2]
[338312109,1726488731417,-1187.84,0.00014999,2]
[338312110,1726488731426,-1187.85770117,0.00014999,2]
[338312111,1726488731435,-1312.73,0.00014999,2]
[338312112,1726488731444,-1312.73,0.00014999,2]
[338312113,1726488731453,-1312.73,0.00014999,2]
[338312114,1726488731462,-1312.73,0.00014999,2]
[338312115,1726488731471,-1312.73,0.00014999,2]
[338312116,1726488731481,-1312.78718813,0.00014999,2]
[338312117,1726488731490,-1663.14,0.00014999,2]
[338312118,1726488731500,-1663.14,0.00014999,2]
[338312119,1726488731509,-1663.14,0.00014999,2]
[338312120,1726488731519,-1663.14,0.00014999,2]
[338312121,1726488731528,-1663.14,0.00014999,2]
[338312122,1726488731538,-1663.25,0.00014999,2]
[338312123,1726488731547,-493.38,0.00014999,2]
[338312124,1726488731556,-507.72,0.00014999,2]
[338312125,1726488731565,-507.72,0.00014999,2]
[338312126,1726488731574,-507.72,0.00014999,2]
[338312127,1726488731584,-507.72,0.00014999,2]
[338312128,1726488731594,-507.72,0.00014999,2]
[338312129,1726488731603,-878.06,0.00014999,2]
[338312130,1726488731612,-507.75,0.00014999,2]
[338312131,1726488731621,-878.06,0.00014999,2]
[338312132,1726488731630,-878.06,0.00014999,2]
[338312133,1726488731639,-878.06,0.00014999,2]
[338312134,1726488731648,-878.14859832,0.00014999,2]
[338312135,1726488731657,-581.61,0.00014999,2]
[338312136,1726488731666,-581.61,0.00014999,2]
[338312137,1726488731674,-581.61,0.00014999,2]
[338312138,1726488731684,-581.61,0.00014999,2]
[338312139,1726488731693,-581.61,0.00014999,2]
[338312140,1726488731702,-581.81,0.00014999,2]
[338312141,1726488731711,-665.63,0.00014999,2]
[338312142,1726488731720,-665.63,0.00014999,2]
[338312143,1726488731729,-665.63,0.00014999,2]
[338312144,1726488731738,-665.63,0.00014999,2]
[338312145,1726488731747,-665.63,0.00014999,2]
[338312146,1726488731757,-665.81676201,0.00014999,2]
[338312147,1726488731766,-2204.4,0.00014999,2]
[338312148,1726488731775,-2204.4,0.00014999,2]
[338312149,1726488731784,-2204.4,0.00014999,2]
[338312150,1726488731793,-2204.4,0.00014999,2]
[338312151,1726488731802,-2204.4,0.00014999,2]
[338312152,1726488731811,-2204.42429107,0.00014999,2]
[338312153,1726488731820,-567.91,0.00014999,2]
[338312154,1726488731830,-567.91,0.00014999,2]
[338312155,1726488731839,-567.91,0.00014999,2]
[338312156,1726488731848,-567.91,0.00014999,2]
[338312157,1726488731858,-567.91,0.00014999,2]
[338312158,1726488731867,-568.09,0.00014999,2]
[338312159,1726488731876,-500.0,0.00014999,2]
[338312160,1726488731885,-500.0,0.00014999,2]
[338312161,1726488731893,-500.0,0.00014999,2]
[338312162,1726488731902,-438.72,0.00014999,2]
[338312163,1726488731912,-500.0,0.00014999,2]
[338312164,1726488731922,-500.0,0.00014999,2]
[338312165,1726488731935,-500.0,0.00014999,2]
[338312166,1726488731944,-500.0,0.00014999,2]
[338312167,1726488731954,-290.73395781,0.00014999,2]
[338312168,1726488731962,-750.31,0.00014999,2]
[338312169,1726488731971,-750.31,0.00014999,2]
[338312170,1726488731982,-750.31,0.00014999,2]
[338312171,1726488731991,-750.31,0.00014999,2]
[338312172,1726488732000,-750.31,0.00014999,2]
[338312173,1726488732010,-750.54714197,0.00014999,2]
[338312174,1726488732018,-532.45,0.00014999,2]
[338312175,1726488732028,-532.45,0.00014999,2]
[338312176,1726488732037,-532.45,0.00014999,2]
[338312177,1726488732046,-532.45,0.00014999,2]
[338312178,1726488732056,-532.64622682,0.00014999,2]
[338312179,1726488732072,-511.84,0.00014999,2]
[338312180,1726488732081,-511.84,0.00014999,2]
[338312181,1726488732090,-511.84,0.00014999,2]
[338312182,1726488732099,-511.84,0.00014999,2]
[338312183,1726488732108,-511.94075711,0.00014999,2]
[338312184,1726488732117,-501.61,0.00014999,2]
[338312185,1726488732126,-501.61,0.00014999,2]
[338312186,1726488732135,-501.61,0.00014999,2]
[338312187,1726488732144,-501.61,0.00014999,2]
[338312188,1726488732153,-501.61,0.00014999,2]
[338312189,1726488732163,-501.66241798,0.00014999,2]
[338312190,1726488732172,-545.11,0.00014999,2]
[338312191,1726488732181,-545.11,0.00014999,2]
[338312192,1726488732191,-545.11,0.00014999,2]
[338312193,1726488732200,-545.11,0.00014999,2]
[338312194,1726488732209,-545.11,0.00014999,2]
[338312195,1726488732219,-545.22072826,0.00014999,2]
[338312196,1726488732413,-610.14,0.00014999,2]
[338312197,1726488732423,-610.14,0.00014999,2]
[338312198,1726488732433,-610.14,0.00014999,2]
[338312199,1726488732442,-610.14,0.00014999,2]
[338312200,1726488732452,-610.14,0.00014999,2]
[338312201,1726488732461,-610.34405858,0.00014999,2]
[338312202,1726488732470,-1459.96,0.00014999,2]
[338312203,1726488732480,-1459.96,0.00014999,2]
[338312204,1726488732489,-1459.96,0.00014999,2]
[338312205,1726488732499,-1459.96,0.00014999,2]
[338312206,1726488732509,-1460.14760419,0.00014999,2]
[338312207,1726488732518,-1935.28,0.00014999,2]
[338312208,1726488732527,-1935.28,0.00014999,2]
[338312209,1726488732536,-1935.28,0.00014999,2]
[338312210,1726488732546,-1935.28,0.00014999,2]
[338312211,1726488732555,-1935.39872388,0.00014999,2]
[338312212,1726488732564,-583.11,0.00014999,2]
[338312213,1726488732573,-583.11,0.00014999,2]
[338312214,1726488732583,-583.11,0.00014999,2]
[338312215,1726488732592,-583.11,0.00014999,2]
[338312216,1726488732602,-583.13169741,0.00014999,2]
[338312217,1726488732612,-500.0,0.00014999,2]
[338312218,1726488732621,-500.0,0.00014999,2]
[338312219,1726488732631,-500.0,0.00014999,2]
[338312220,1726488732641,-500.0,0.00014999,2]
[338312221,1726488732651,-500.0,0.00014999,2]
[338312222,1726488732660,-396.08129719,0.00014999,2]
[338312223,1726488732670,-500.0,0.00014999,2]
[338312224,1726488732680,-500.0,0.00014999,2]
[338312225,1726488732690,-500.0,0.00014999,2]
[338312226,1726488732700,-500.0,0.00014999,2]
[338312227,1726488732709,-500.0,0.00014999,2]
[338312228,1726488732719,-316.91,0.00014999,2]
[338312229,1726488732729,-677.08,0.00014999,2]
[338312230,1726488732738,-677.08,0.00014999,2]
[338312231,1726488732748,-677.08,0.00014999,2]
[338312232,1726488732757,-677.08,0.00014999,2]
[338312233,1726488732767,-677.08,0.00014999,2]
[338312234,1726488732776,-677.15397525,0.00014999,2]
[338312235,1726488732786,-500.0,0.00014999,2]
[338312236,1726488732795,-500.0,0.00014999,2]
[338312237,1726488732806,-500.0,0.00014999,2]
[338312238,1726488732815,-356.77814383,0.00014999,2]
[338312239,1726488732824,-500.0,0.00014999,2]
[338312240,1726488732833,-504.15796131,0.00014999,2]
[338312241,1726488732842,-500.0,0.00014999,2]
[338312242,1726488732851,-500.0,0.00014999,2]
[338312243,1726488732860,-500.0,0.00014999,2]
[338312244,1726488732870,-500.0,0.00014999,2]
[338312245,1726488732879,-583.75523176,0.00014999,2]
[338312246,1726488732888,-536.06,0.00014999,2]
[338312247,1726488732897,-536.06,0.00014999,2]